Workbook

Sheet koud buffet
B1: Deze info is van: Feestzaal Katelijnenhof, Heirweg 172, 8800 Roeselare. Contacteer de zaakvoerder: 0475/618058 - info@katelijnenhof.be - web: www.katelijnenhof.be met foto's en volledige prijslijst.
B3: ="Rekenmodule koud buffet. De prijzen van de recepties in deze module gelden voor alle personen waarvan de receptie gevolgd wordt door een maaltijd. Geldig tot " & DAY(matrixen!B1) & " - " & MONTH(matrixen!B1) & " - " & YEAR(matrixen!B1) -> Rekenmodule koud buffet. De prijzen van de recepties in deze module gelden voor alle personen waarvan de receptie gevolgd wordt door een maaltijd. Geldig tot 31 - 12 - 2020
F5: kinderen | H5: kinderen | J5: kinderen
D6: =IF(TODAY()>AA11,"Deze module is niet meer geldig.","") ->  | F6: 0 t.e.m. 2 j. 11 maand | H6: 3 j. t.e.m. 5 j. 11 maand | J6: 6 j, t.e.m. 11 jr. 11 maand
B7: Totaal per volwassene: | D7: =IF(TODAY()>AA11,1/0,SUM(D10:D1001)) -> 33.80 | F7: 0,00 | H7: =ROUND(D7/3,2) -> 11.27 | J7: =ROUND(D7/2,2) -> 16.90
F8: U kan ook voor de kinderen een kindermenu nemen ( zie een andere rekenmodule)
B10: MAAK STEEDS UW KEUZE in de gele vakken: (scroll naar beneden om meer gegevens in te vullen) Hierboven kunt u uw prijs volgen. | I10: U vindt verder een overzicht van uw selectie
B11: (klik op de gele balk, vervolgens op het pijltje rechts en scroll ev. naar beneden) | D11: prijs pp | F11: Gedetailleerde info | G11: Selecteer hier uw hapjes: | I11: =COUNTA(G13:K23) -> 0 | J11: hapjes geselecteerd. | AA11: =matrixen!B1 -> 2020-12-31
B13: Maak in dit vak uw keuze voor het aperitief | D13: =VLOOKUP(B13,matrixen!B11:I19,8,FALSE) -> 0.00 | F13: =HLOOKUP($B$13,matrixen!$T$14:$AB$28,2,FALSE) -> 0 | AL13: =matrixen!AM16 -> KOUD: crunchy sushi
B14: Maak in dit vak uw keuze voor het aperitief | F14: =HLOOKUP($B$13,matrixen!$T$14:$AB$28,3,FALSE) -> 0 | AA14: =matrixen!B11 -> Maak in dit vak uw keuze voor het aperitief | AL14: =matrixen!AM17 -> luzerne met gerookte zalm, eitjes van vliegende vis in wasabi
B15: ="U selecteerde tot nu " & COUNTA(G13:K23)+IF(G24<>"",1,0)& " hapjes." -> U selecteerde tot nu 0 hapjes. | D15: =IF(IF(B13=matrixen!N14,(I11-4)*matrixen!I46,I11*matrixen!I46)<0,0,IF(B13=matrixen!N14,(I11-4)*matrixen!I46,I11*matrixen!I46)) -> 0.00 | F15: =HLOOKUP($B$13,matrixen!$T$14:$AB$28,4,FALSE) -> 0 | AA15: =matrixen!B12 -> 1 aperitief per persoon | AL15: =matrixen!AM18 -> preischeuten met tijgergarnalen en mini tomaat
F16: =HLOOKUP($B$13,matrixen!$T$14:$AB$28,5,FALSE) -> 0 | AA16: =matrixen!B13 -> 2 aperitieven per persoon | AL16: =matrixen!AM19 -> aperoglaasje parmaham met meloenbolletjes
F17: =HLOOKUP($B$13,matrixen!$T$14:$AB$28,6,FALSE) -> 0 | AA17: =matrixen!B14 -> Receptie E | AL17: =matrixen!AM20 -> ganache van foie gras met frambozenconfituur en amandelbrood
F18: =HLOOKUP($B$13,matrixen!$T$14:$AB$28,7,FALSE) -> 0 | AA18: =matrixen!B15 -> Receptie A | AL18: =matrixen!AM21 -> aperoglaasje parmaham met espuma van mango
B19: Indien een genodigde een extra aperitief bestelt of een aperitief wenst die niet in de prijs begrepen is dan: | F19: =HLOOKUP($B$13,matrixen!$T$14:$AB$28,8,FALSE) -> 0 | AA19: =matrixen!B16 -> 0 | AL19: =matrixen!AM22 -> verse oester
B20: De gast die een extra aperitief bestelt betaalt deze zelf | F20: =HLOOKUP($B$13,matrixen!$T$14:$AB$28,9,FALSE) -> 0 | AA20: =matrixen!B17 -> 0 | AL20: =matrixen!AM23 -> Taboulé met gerookte forel
B21: De gast die een extra aperitief bestelt betaalt deze zelf | F21: =HLOOKUP($B$13,matrixen!$T$14:$AB$28,10,FALSE) -> 0 | AA21: =matrixen!B18 -> 0 | AL21: =matrixen!AM24 -> Haringhapje met curry
B22: Het mag op de gemeenschappelijke rekening. | F22: =HLOOKUP($B$13,matrixen!$T$14:$AB$28,11,FALSE) -> 0 | AA22: =matrixen!B19 -> 0 | AL22: =matrixen!AM25 -> Mini bagel met zalm en kruidenkaas
F23: =HLOOKUP($B$13,matrixen!$T$14:$AB$28,12,FALSE) -> 0 | AA23: =matrixen!B20 -> 0 | AL23: =matrixen!AM26 -> BORD: op tafel met rauwe groenten en cocktailsaus (wortel, bloemkool, radijs)
F24: =HLOOKUP($B$13,matrixen!$T$14:$AB$28,13,FALSE) -> 0 | G24: =IF(F20="tapenades", matrixen!AM28 & " nootjes en chips","") ->  | AA24: =matrixen!#REF! ->  | AL24: =matrixen!AM27 -> Bord met olijven, kaasjes en salamietjes
F25: =HLOOKUP($B$13,matrixen!$T$14:$AB$28,14,FALSE) -> 0 | AA25: =matrixen!B22 -> 0 | AL25: =matrixen!AM28 -> Bord met 3 tapenades (tonijn / pesto spread rosso /zoete peper roomkaas)
F26: =HLOOKUP($B$13,matrixen!$T$14:$AB$28,15,FALSE) -> 0 | AA26: =matrixen!B23 -> Schuimwijn van het huis (reeds inbegrepen) | AL26: =matrixen!AM29 -> WARM: mini hot-dog
AA27: =matrixen!B24 -> Cava | AL27: =matrixen!AM30 -> Breydelspek met mosterdroomsaus
B28: Stel zelf uw koud buffet samen! | AA28: =matrixen!B25 -> Champagne | AL28: =matrixen!AM31 -> aperoglaasje scampi
B29: In elk buffet zijn steeds groenten voorzien, koude aardappelen en/of aardappel in de pel en de schotels worden versierd met fruit. Ook de sausjes zijn inbegrepen. | AA29: =matrixen!B26 -> 0 | AL29: =matrixen!AM32 -> Warme dagvis met curry
B30: Afhankelijk van de soort ingrediënten die u kiest, verandert de prijs van het buffet. U mag elk ingrediënt meermaals aanduiden als u graag van iets een grotere portie heeft . | AL30: =matrixen!AM33 -> een gevuld toastcupje
B31: Wij stellen voor om 12 ingrediënten te kiezen, voor een evenwichtig buffet. Meer of minder mag ook, het gewicht per persoon, per portie blijft steeds gelijk. | AA31: =matrixen!B44 -> Maak hier uw keuze voor extra hapjes bij het aperitief | AL31: =matrixen!AM34 -> oester met champagnesaus
B32: Meer info: ongeacht of u veel of weinig ingrediënten aanduidt, u bekomt steeds een even grote portie per persoon. Dus hoe meer ingrediënten u selecteert, hoe kleiner de hoeveelheid per soort op het buffet wordt. | AA32: =matrixen!B45 -> Nootjes, chips en zoutkoekjes zoveel u wenst, per pers. | AL32: =matrixen!AM35 -> garnaal in filo
B33: Indien niet duidelijk, bel of mail ons voor meer info. 0475/618058 of info@katelijnenhof.be. | AA33: =matrixen!B46 -> Rauwe groenten (wortel, bloemkool, cocktailsaus) prijs per persoon: | AL33: =matrixen!AM36 -> mini croque
AA34: =matrixen!B47 -> Warme toostjes per stuk | AL34: =matrixen!AM37 -> mini loempia
B35: Kies hier eerst uw aardappelbereiding | AA35: =matrixen!B48 -> Koude toostjes per stuk | AL35: =matrixen!AM38 -> mini kippenboutje
B36: Koude aardappelen | D36: =VLOOKUP(B36,matrixen!B85:G88,6,FALSE) -> inbegrepen | AA36: =matrixen!B49 -> aperitiefglaasjes per stuk | AL36: =matrixen!AM39 -> Gepaneerde garnalen butterfly
B37: Koude aardappelen | AA37: =matrixen!B50 -> Oesters per stuk warm of koud | AL37: =matrixen!AM40 -> SOEP van kreeft
B38: Selecteer hier de samenstelling van uw buffet. Indien u bij onderstaande lijst blijft, kost het buffet de basisprijs: | D38: =matrixen!B118 -> 31.00 | F38: ="Selecteert u één of meer van onderstaande specialiteiten, is er een supplement van "& matrixen!E118 &" euro pp t.o.v. de basisprijs" -> Selecteert u één of meer van onderstaande specialiteiten, is er een supplement van 5 euro pp t.o.v. de basisprijs | AA38: =matrixen!B51 -> wachtbordje met vispasteitje | AL38: =matrixen!AM41 -> Aspergeroomsoep met koornbloemblaadjes
A39: 1 | B39: Kies uit deze vlees- of visspecialiteiten | E39: 1 | F39: supplement 1 | G39: =IF(F39<> "supplement 1",1,0) -> 0 | H39: =IF(G39+G40+G41+G42+G43+G44+G45+G46+G47>0,matrixen!E118,0) -> 0 | J39: U mag tegelijk ook | AA39: =matrixen!B52 -> wachtbordje van reuzentoost met gerookte zalm | AL39: =matrixen!AM42 -> Pompoensoep (sept. okt. nov.)
A40: 2 | B40: Kies uit deze vlees- of visspecialiteiten | E40: 2 | F40: supplement 1 | G40: =IF(F40<> "supplement 1",1,0) -> 0 | H40: =IF(D50>0,matrixen!E118,0) -> 0 | J40: uit de vorige categorie kiezen | AA40: =matrixen!B53 -> wachtbordje van lauw slaatje met gerookte zalm en scampi's | AL40: =matrixen!AM43 -> Kervelroomsoep met gerookte eend
A41: 3 | B41: Kies uit deze vlees- of visspecialiteiten | E41: 3 | F41: supplement 1 | G41: 0 | H41: =H39-H40 -> 0 | AA41: =matrixen!B54 -> 0 | AL41: =matrixen!AM44 -> Preiroomsoep met broccoligarnituur en gebakken spekjes
A42: 4 | B42: Kies uit deze vlees- of visspecialiteiten | D42: =IF(H41>0,H41,0) -> 0.00 | E42: 4 | F42: supplement 1 | G42: 0 | AA42: =matrixen!B55 -> 0 | AL42: =matrixen!AM45 -> Soepje van boschampignons met gerookte paling
A43: 5 | B43: Kies uit deze vlees- of visspecialiteiten | E43: 5 | F43: supplement 1 | G43: 0 | AA43: =matrixen!B56 -> 0 | AL43: =matrixen!AM46 -> 0
A44: 6 | B44: Kies uit deze vlees- of visspecialiteiten | E44: 6 | F44: supplement 1 | G44: 0 | AA44: =matrixen!B85 -> Koude aardappelen | AL44: =matrixen!AM47 -> 0
A45: 7 | B45: Kies uit deze vlees- of visspecialiteiten | E45: 7 | F45: supplement 1 | G45: 0 | AA45: =matrixen!B86 -> Aardappel in de pel
A46: 8 | B46: Kies uit deze vlees- of visspecialiteiten | E46: 8 | F46: supplement 1 | G46: 0 | AA46: =matrixen!B87 -> 1/2 koude aardappelen en 1/2 aardappel in de pel
A47: 9 | B47: Kies uit deze vlees- of visspecialiteiten | E47: 9 | F47: supplement 1 | G47: 0 | AA47: =matrixen!B88 -> frietjes (supplement)
A48: 10 | B48: Kies uit deze vlees- of visspecialiteiten | F48: ="Selecteert u één of meer van onderstaande specialiteiten, is er een supplement van " & matrixen!H118 & " euro pp t.o.v. de basisprijs" -> Selecteert u één of meer van onderstaande specialiteiten, is er een supplement van 8,5 euro pp t.o.v. de basisprijs
A49: 11 | B49: Kies uit deze vlees- of visspecialiteiten | F49: U mag tegelijk ook uit beide vorige categoriën kiezen. | AA49: =matrixen!B97 -> Kies uit deze vlees- of visspecialiteiten
A50: 12 | B50: Kies uit deze vlees- of visspecialiteiten | D50: =IF(H50>0,matrixen!H118,0) -> 0.00 | E50: 1 | F50: supplement 2 | G50: =IF(F50<> "supplement 2",1,0) -> 0 | H50: =IF(G50+G51+G52>0,11,0) -> 0 | AA50: =matrixen!B98 -> tonijnsla
B51: Kies uit deze vlees- of visspecialiteiten | E51: 2 | F51: supplement 2 | G51: =IF(F51<> "supplement 2",1,0) -> 0 | AA51: =matrixen!B99 -> vispastei
E52: 3 | F52: supplement 2 | G52: =IF(F52<> "supplement 2",1,0) -> 0 | AA52: =matrixen!B100 -> koolvis
F53: supplement 1 | AA53: =matrixen!B101 -> halve tomaat belegd met krabsla
B54: Selecteer hier uw formule van de dranken tijdens het buffet. | F54: supplement 2 | AA54: =matrixen!B102 -> pandalusgarnalen
B55: Huiswijn, bieren en frisdranken als forfait | D55: =VLOOKUP(B55,matrixen!B124:M126,12,FALSE) -> 2.80 | AA55: =matrixen!B103 -> haring met dille
B56: Huiswijn, bieren en frisdranken als forfait | AA56: =matrixen!B104 -> américain préparé
F57: extra info | AA57: =matrixen!B105 -> varkensgebraad
B58: Selecteer hier uw dessert. | AA58: =matrixen!B106 -> salami
B59: Nog geen dessert geselecteerd | D59: =VLOOKUP(B59,matrixen!B127:I150,8,FALSE) -> 0.00 | F59: =VLOOKUP($B$59,dessert,10,FALSE) -> 0 | AA59: =matrixen!B107 -> gekookte achterham
B60: Nog geen dessert geselecteerd | F60: =VLOOKUP($B$59,dessert,11,FALSE) -> 0 | AA60: =matrixen!B108 -> hennepot
B61: =IF(B105=matrixen!B195,"Kies hier nu een aantal dessertjes. 4 zijn reeds inbegrepen. Extra aan € " &matrixen!I191&",00/stuk. U selecteerde er tot nu: "&COUNTA(B62:B68),"") -> Kies hier nu een aantal dessertjes. 4 zijn reeds inbegrepen. Extra aan € ,00/stuk. U selecteerde er tot nu: 0 | F61: =VLOOKUP($B$59,dessert,12,FALSE) -> 0 | AA61: =matrixen!B109 -> vleespastei
F62: =VLOOKUP($B$59,dessert,13,FALSE) -> 0 | AA62: =matrixen!B110 -> hoofdvlees
D65: =IF(COUNTA(B62:B68)*matrixen!I128 - IF(B59=matrixen!B132,matrixen!I128*4,0)<0,0,COUNTA(B62:B68)*matrixen!I128 - IF(B59=matrixen!B132,matrixen!I128*4,0)) -> 0.00 | F65: =IF(D65>0,"U selecteerde meer dan 4 stuks dessert. Vandaar het supplement.","") -> 
B69: Nog geen dessert geselecteerd
F71: =VLOOKUP($B$59,dessert,14,FALSE) -> 0 | AA71: =matrixen!B111 -> stukjes kippebout
F72: =VLOOKUP($B$59,dessert,15,FALSE) -> 0 | AA72: =matrixen!B112 -> hespeworst
B73: Selecteer hier uw koffie | AA73: =matrixen!B113 -> gepocheerde zalm
B74: Nog geen keuze gemaakt | D74: =VLOOKUP(B74,matrixen!B154:I157,8,FALSE) -> 0.00 | J74: ="Wenst u exclusiviteit voor het volledige domein mits meerprijs van € " &matrixen!F222& " ? " -> Wenst u exclusiviteit voor het volledige domein mits meerprijs van € 750 ? | K74: nee | L74: =IF(K74="ja",matrixen!F222,0) -> 0 | AA74: =matrixen!B114 -> gerookte bacon
B75: Nog geen keuze gemaakt | AA75: =matrixen!B115 -> gepocheerde forel
B76: Alle drank na de maaltijd komt op één rekening en wordt door de organisator van het feest betaald | D76: =VLOOKUP(B76,matrixen!A159:P161,15,FALSE) -> 0.00 | E76: =VLOOKUP(B76,matrixen!A159:P161,16,FALSE) -> één rekening | F76: Vegetariërs: | G76: nee | H76: Speciale dieten: | I76: nee | J76: Halal bereidingen: | K76: nee | AA76: =matrixen!B116 -> makreel met peper
B77: Alle drank na de maaltijd komt op één rekening en wordt door de organisator van het feest betaald
B78: Wijze van betaling: | F78: Feest met discobar: | G78: nee | H78: Allergenen: | I78: nee | J78: =IF($I$78="ja",matrixen!A165,"") ->  | AA78: =matrixen!E97 -> supplement 1
B79: Betaling op de dag zelf (cash of bancontact), u bekomt 2% korting op het totaal | J79: =IF($I$78="ja",matrixen!A166,"") ->  | AA79: =matrixen!E98 -> tomaat met grijze garnalen
H80: =IF(G78="ja",matrixen!A169,"") ->  | J80: =IF($I$78="ja",matrixen!A167,"") ->  | AA80: =matrixen!E99 -> gerookte zalm
B81: Om uw selecties te bewaren, gelieve ze op te slaan op uw harde schijf. (opslaan als) | AA81: =matrixen!E100 -> parmaham
B82: Om een aanvraag naar ons te versturen stuur een mail naar info@katelijnenhof met in bijlage dit bestand vanaf uw harde schijf. | AA82: =matrixen!E101 -> langoustines 1 pp
E83: Eventuele datum van het feest: | H83: Overzicht van uw selectie: | AA83: =matrixen!E102 -> gebakken scampi's 2 pp
F84: Het exacte aantal personen en de tafelschikking dient ons meegedeeld te worden de vrijdag van het weekend voordien. | H84: =IF(L84>0,B13,"") ->  | L84: =D13 -> 0.00 | AA84: =matrixen!E103 -> roastbeef
E85: geraamd aantal volwassenen: | H85: =IF(L85>0,B100,"") ->  | I85: =IF(L85>0,"geldt alleen bij recepties!!!","") ->  | L85: =D100 -> 0.00 | AA85: =matrixen!E104 -> kabeljauw
E86: geraamd aantal kinderen 6 j. t.e.m. 11 jr. 11 maand: | H86: =IF(L86>0,B106,"") ->  | L86: =D106 -> 0.00 | AA86: =matrixen!E105 -> gerookte heilbot
E87: geraamd aantal kinderen 3 j. t.e.m. 5 j. 11 maand: | H87: =IF(L87>0,B61,"") ->  | L87: =D107 -> 0.00 | AA87: =matrixen!E106 -> gerookte forelfilet
E88: geraamd aantal kinderen 0 t.e.m. 2 j. 11 maand: | H88: =IF(L88>0,B62,"") ->  | L88: =D108 -> 0.00
H89: =IF(L89>0,B63,"") ->  | L89: =D109 -> 0.00 | AA89: =matrixen!H97 -> supplement 2
E90: uur van aankomst: | H90: =IF(L90>0,B64,"") ->  | L90: =D110 -> 0.00 | AA90: =matrixen!H98 -> foie gras
E91: aan tafel om: | H91: =B36 -> Koude aardappelen | L91: =D36 -> inbegrepen | AA91: =matrixen!H99 -> oesters 2pp
E92: Uw naam: | H92: Groenten en sausen | L92: inbegrepen | AA92: =matrixen!H100 -> kreeft
E93: Adres: | H93: Basisprijs koud buffet (gedetailleerde samenstelling zie hoger): | L93: =D38 -> 31.00
E94: Stad: | H94: =IF(L94>0,"U selecteerde ook uit supplement 1","") ->  | L94: =D42 -> 0.00 | AA94: =matrixen!B124 -> Huiswijn, bieren en frisdranken als forfait
E95: Tel nr: | H95: =IF(L95>0,"U selecteerde ook uit supplement 2","") ->  | L95: =D50 -> 0.00 | AA95: =matrixen!B125 -> Domaine Joel Delauny Touraine en/of Château Reynier, Bordeaux superieur, bieren en frisdranken
E96: email: | H96: =B55 -> Huiswijn, bieren en frisdranken als forfait | L96: =D55 -> 2.80 | AA96: =matrixen!B126 -> 0
E97: geraamde totalen uit andere rekenbladen: | H97: =IF(L97>0,B59,"") ->  | L97: =D59 -> 0.00
B98: Mogelijke supplementen bij de recepties | E98: (vb: kindermenus) | H98: =IF(L98>0,B74,"") ->  | L98: =D74 -> 0.00 | AA98: =matrixen!B127 -> 0
H99: Keuze drank na de maaltijd: | L99: =E76 -> één rekening | AA99: =matrixen!B128 -> supplement per stukje gebak:
B100: Schuimwijn van het huis (reeds inbegrepen) | D100: =VLOOKUP(B100,matrixen!B23:I26,8,FALSE) -> 0.00 | AA100: =matrixen!B129 -> 0
E101: Geschat factuurtotaal: | F101: =Reservatievoorstel!I12 -> € 0.00 | H101: Gaat u akkoord met de algemene verkoopsvoorwaarden? | K101: ja | AA101: =matrixen!B130 -> Nog geen dessert geselecteerd
F102: (Gebaseerd op de door u ingebrachte gegevens) | J102: Voorkeur tafelschikking: | K102: geen voorkeur | AA102: =matrixen!B131 -> IJstaart ambachtelijk, speciale vorm, smaak naar keuze
F103: korting bij contante betaling: | G103: =F101*0.02 -> € 0.00 | J103: reden feest: | AA103: =matrixen!B132 -> Stel hieronder uw mini dessertbordje samen met minstens 4 dessertjes
F104: saldo: | G104: =F101-G103 -> € 0.00 | J104: Opmerking: | AA104: =matrixen!B133 -> Coupe met vers fruit en verse slagroom.
E105: =SUMIF(B106:B110,"warme toostjes per stuk",D106:D110) -> 0 | F105: =IF($E$105>0,matrixen!B58,"") ->  | G105: =SUMIF(B106:B110,"koude toostjes per stuk",D106:D110) -> 0 | H105: =IF($G$105>0,matrixen!E58,"") ->  | I105: =SUMIF(B106:B110,"aperitiefglaasjes per stuk",D106:D110) -> 0 | J105: Wenst u een factuur? | K105: nee | AA105: =matrixen!B134 -> Aardbeiensoepje met sinaasappel in seizoen
F106: =IF($E$105>0,matrixen!B59,"") ->  | H106: =IF($G$105>0,matrixen!E59,"") ->  | J106: =IF($I$105>0,matrixen!H59,"") ->  | K106: =IF(K105="ja","Gelieve uw facturatiegegevens bij opmerkingen in te vullen.","") ->  | AA106: =matrixen!B135 -> Coupe met aardbeien en verse slagroom.
F107: =IF($E$105>0,matrixen!B60,"") ->  | H107: =IF($G$105>0,matrixen!E60,"") ->  | J107: =IF($I$105>0,matrixen!H60,"") ->  | AA107: =matrixen!B136 -> Dame blanche
F108: =IF($E$105>0,matrixen!B61,"") ->  | H108: =IF($G$105>0,matrixen!E61,"") ->  | J108: =IF($I$105>0,matrixen!H61,"") ->  | AA108: =matrixen!B137 -> - frambozentaart
F109: =IF($E$105>0,matrixen!B62,"") ->  | H109: =IF($G$105>0,matrixen!E62,"") ->  | J109: =IF($I$105>0,matrixen!H62,"") ->  | AA109: =matrixen!B138 -> - progres
F110: =IF($E$105>0,matrixen!B63,"") ->  | H110: =IF($G$105>0,matrixen!E63,"") ->  | J110: =IF($I$105>0,matrixen!H63,"") ->  | AA110: =matrixen!B139 -> - fruitgebakje
F111: =IF($E$105>0,matrixen!B64,"") ->  | H111: =IF($G$105>0,matrixen!E64,"") ->  | AA111: =matrixen!B140 -> - biscuit crème fraiche met coulis
AA112: =matrixen!B141 -> - warme appeltaart met een bolletje ijs
AA113: =matrixen!B142 -> - zwarte woudtaart
AA114: =matrixen!B143 -> Sabayon met rood fruit
AA115: =matrixen!B144 -> 0
AA116: =matrixen!B145 -> Basis dessertbuffet met:
AA117: =matrixen!B146 -> Uitgebreid dessertbuffet met:
AA118: =matrixen!B147 -> Uitgebreid en luxueus dessertbuffet met:
AA120: =matrixen!B154 -> Nog geen keuze gemaakt
AA121: =matrixen!B155 -> Koffie 3 X bediend
AA122: =matrixen!B156 -> Koffie 3 X bediend met koekjes
AA123: =matrixen!B157 -> Koffie 3 X bediend met pralines
AA125: =matrixen!A159 -> Alle drank na de maaltijd komt op één rekening en wordt door de organisator van het feest betaald
AA126: =matrixen!A160 -> Elke gast die na de maaltijd een drankje bestelt rekent direct af aan de bar
AA127: =matrixen!A161 -> Forfait voor drank naar believen (alle bieren en frisdranken van de drankkaart in de zaal) na een maaltijd. pp:
AA129: =matrixen!A187 -> ja
AA130: =matrixen!A188 -> nee
AA132: geen voorkeur
AA133: zoveel mogelijk ronde tafels van 6 à 8 personen
AA134: liever lange tafels ev. In U-vorm of H-vorm.
AA137: =matrixen!A380 -> Betaling op de dag zelf (cash of bancontact), u bekomt 2% korting op het totaal
AA138: =matrixen!A381 -> Storting op BE 48 4631 1391 2127 min. 7 dagen voor het feest, 2% korting
AA139: =matrixen!A382 -> Betaling na het feest. Gelieve 40 % voorschot te storten op BE48 4631 1391 2127. Geen korting.

Sheet matrixen (hidden)
B1: 2020-12-31 | L1: lam, zwanen enz.. . Met foto suppl. | P1: 15.00
L2: Foto op de taart: suppl. € | O2: 0.70 | P2: per stuk taart en € | R2: 10.00 | S2: per foto
B6: Minimaal verbruik feest | E6: 950
B11: Maak in dit vak uw keuze voor het aperitief
B12: 1 aperitief per persoon | I12: € 6.00
B13: 2 aperitieven per persoon | I13: € 10.00
B14: Receptie E | I14: € 12.60 | K14: Maak in dit vak uw keuze voor het aperitief | L14: 1 aperitief per persoon | M14: 2 aperitieven per persoon | N14: Receptie E | O14: Receptie A | P14: 0 | Q14: 0 | R14: 0 | S14: 0 | T14: Maak in dit vak uw keuze voor het aperitief | U14: 1 aperitief per persoon | V14: 2 aperitieven per persoon | W14: 0 | X14: Receptie E | Y14: 0 | Z14: 0 | AA14: 0 | AB14: Receptie A
B15: Receptie A | I15: € 10.00 | L15: 1 per persoon, | M15: 2 per persoon, | N15: Uitgebreide receptie | O15: Basis receptie. | P15: 0 | Q15: 0 | R15: 0 | S15: 0 | U15: vrije keuze | V15: vrije keuze | W15: 0 | X15: dranken inbegrepen | Y15: 0 | Z15: 0 | AA15: 0 | AB15: dranken inbegrepen | AM15: Keuze aperitiefhapjes:
B16: 0 | I16: € 0.00 | L16: eventueel tweede wordt | M16: eventueel derde wordt | N16: met 4 aperitiefglaasjes | O16: Dranken 2 uur inbegrepen. | P16: 0 | Q16: 0 | R16: 0 | S16: 0 | U16: Porto rood | V16: Porto rood | W16: 0 | X16: gedurende 2 uur | Y16: 0 | Z16: 0 | AA16: 0 | AB16: gedurende 2 uur | AM16: KOUD: crunchy sushi
B17: 0 | I17: € 0.00 | L17: direct afgerekend of | M17: direct afgerekend of | N17: en drank gedurende 2 uur. | O17: Met tapenades: | Q17: 0 | R17: 0 | U17: Martini | V17: Martini | W17: 0 | X17: met huis schuimwijn, | Y17: 0 | Z17: 0 | AA17: 0 | AB17: met huis schuimwijn, | AM17: luzerne met gerookte zalm, eitjes van vliegende vis in wasabi
B18: 0 | I18: € 0.00 | L18: komt op 1 rekening | M18: komt op 1 rekening | N18: 0 | O18: tonijn / pesto spread rosso /zoete peper roomkaas | Q18: 0 | U18: Kir | V18: Kir | W18: 0 | X18: frisdranken en | Y18: 0 | Z18: 0 | AA18: 0 | AB18: frisdranken en | AM18: preischeuten met tijgergarnalen en mini tomaat
B19: 0 | I19: € 0.00 | O19: 0 | U19: Frisdrank | V19: Frisdrank | W19: 0 | X19: bieren naar believen. | Z19: 0 | AA19: 0 | AB19: bieren naar believen. | AM19: aperoglaasje parmaham met meloenbolletjes
O20: 0 | U20: Bieren | V20: Bieren | W20: 0 | X20: 0 | Z20: 0 | AA20: 0 | AB20: 0 | AM20: ganache van foie gras met frambozenconfituur en amandelbrood
O21: 0 | U21: nootjes en chips inbegr. | V21: nootjes en chips inbegr. | W21: 0 | X21: Assortiment van 4 | Z21: 0 | AA21: 0 | AB21: Ook inbegrepen: | AM21: aperoglaasje parmaham met espuma van mango
M22: Roomijs | U22: TIP: | V22: TIP: | W22: 0 | X22: aperitiefglaasjes | Z22: 0 | AA22: 0 | AB22: tapenades | AM22: verse oester
B23: Schuimwijn van het huis (reeds inbegrepen) | I23: € 0.00 | M23: Bruine chocolademousse | U23: Receptie A | V23: Receptie A | W23: 0 | X23: inbegrepen. | Z23: 0 | AA23: 0 | AB23: nootjes en chips | AM23: Taboulé met gerookte forel
B24: Cava | I24: € 3.25 | M24: Pasteis de nata | U24: kost evenveel als | V24: kost evenveel als | W24: 0 | X24: Maak uw keuze | Z24: 0 | AA24: 0 | AB24: 0 | AM24: Haringhapje met curry
B25: Champagne | I25: € 7.00 | M25: Chocoladebavarois | U25: 2 aperitieven pp. | V25: 2 aperitieven pp. | W25: 0 | X25: hier rechts! => | Z25: 0 | AA25: 0 | AM25: Mini bagel met zalm en kruidenkaas
M26: Miserable | U26: En dan is de drank naar | V26: En dan is de drank naar | W26: 0 | X26: 0 | Z26: 0 | AA26: 0 | AM26: BORD: op tafel met rauwe groenten en cocktailsaus (wortel, bloemkool, radijs)
M27: glaasje fruitsla met perensorbet | U27: believen! | V27: believen! | W27: 0 | X27: Liever meer dan 4 hapjes? Geen probleem. | Z27: 0 | AA27: 0 | AM27: Bord met olijven, kaasjes en salamietjes
M28: Witte chocolademousse | U28: En met tapenades! | V28: En met tapenades! | W28: 0 | X28: Het supplement bedraagt € 1,60 per hapje | Z28: 0 | AA28: 0 | AM28: Bord met 3 tapenades (tonijn / pesto spread rosso /zoete peper roomkaas)
M29: Roomsoes met warme chocoladesaus | AM29: WARM: mini hot-dog
B30: Dessertbuffet zonder maaltijd: | I30: € 16.50 | M30: Tiramisu | AM30: Breydelspek met mosterdroomsaus
B31: Koffie 3 X bediend | I31: € 2.50 | M31: Javanais | AM31: aperoglaasje scampi
M32: Gebak peer-caramel | AM32: Warme dagvis met curry
M33: mini fruittaartje | AM33: een gevuld toastcupje
B34: 1 aperitief per persoon, vrije keuze | I34: € 6.00 | AM34: oester met champagnesaus
B35: Pineau des charentes wit | I35: € 6.00 | AM35: garnaal in filo
B36: Maison (basis safari) | I36: € 6.00 | AM36: mini croque
B37: Kir royale | I37: € 6.00 | AM37: mini loempia
B38: Sherry dry | I38: € 6.00 | AM38: mini kippenboutje
B39: Porto | I39: € 6.00 | AM39: Gepaneerde garnalen butterfly
B40: Martini (wit/rood) | I40: € 6.00 | AM40: SOEP van kreeft
B41: Kir | I41: € 6.00 | AM41: Aspergeroomsoep met koornbloemblaadjes
B42: Schuimwijn | I42: € 6.00 | AM42: Pompoensoep (sept. okt. nov.)
AM43: Kervelroomsoep met gerookte eend
B44: Maak hier uw keuze voor extra hapjes bij het aperitief | AM44: Preiroomsoep met broccoligarnituur en gebakken spekjes
B45: Nootjes, chips en zoutkoekjes zoveel u wenst, per pers. | I45: gratis | AM45: Soepje van boschampignons met gerookte paling
B46: Rauwe groenten (wortel, bloemkool, cocktailsaus) prijs per persoon: | I46: € 1.60
B47: Warme toostjes per stuk | I47: fini
B48: Koude toostjes per stuk | I48: fini
B49: aperitiefglaasjes per stuk | I49: € 1.60
B50: Oesters per stuk warm of koud | I50: fini
B51: wachtbordje met vispasteitje | I51: € 4.00
B52: wachtbordje van reuzentoost met gerookte zalm | I52: € 4.00
B53: wachtbordje van lauw slaatje met gerookte zalm en scampi's | I53: € 6.00
B58: Keuze warme toostjes | E58: Keuze koude toostjes | H58: Keuze aperoglaasjes
B59: (bij reservatie te bepalen) | E59: (bij reservatie te bepalen) | H59: (bij reservatie te bepalen)
B60: kippenbilletjes | E60: toost garnaal koud | H60: aperoglaasje eendenmousse
B61: toostcupje | E61: toost gerookte zalm koud | H61: aperoglaasje gerookte zalm
B62: garnaal in filo | E62: toost krabsla koud | H62: aperoglaasje mousse van krab
B63: mini croque | E63: toost eendenpastei koud | H63: aperoglaasje tomaat / garnaal
B64: scampi enz…. | H64: en nog veel mogelijkheden
C69: uitgebreide fomule met toostjes in menuvorm (max 3uur)
C70: “3 koude voorgerechtjes”
C71: koud hapje met krabsla
C72: koud hapje met gerookte zalm
C73: koud hapje met grijze garnalen
C74: “soepje”
C75: 1 mini soepje tomatenroom of vissoepje
C76: “3 warme gerechtjes”
C77: kippenboutje
C78: mini loempia
C79: mini croque monsieur
C80: “2 dessertjes”
C81: mini-brochetje met druifje, ananas en meloenbolletje
C82: mini confituurtaartje
B85: Koude aardappelen | G85: inbegrepen
B86: Aardappel in de pel | G86: inbegrepen
B87: 1/2 koude aardappelen en 1/2 aardappel in de pel | G87: inbegrepen
B88: frietjes (supplement) | G88: 1.00
A97: 1 | B97: Kies uit deze vlees- of visspecialiteiten | D97: 1 | E97: supplement 1 | G97: 1 | H97: supplement 2
A98: 2 | B98: tonijnsla | D98: 2 | E98: tomaat met grijze garnalen | G98: 2 | H98: foie gras
A99: 3 | B99: vispastei | D99: 3 | E99: gerookte zalm | G99: 3 | H99: oesters 2pp
A100: 4 | B100: koolvis | D100: 4 | E100: parmaham | G100: 4 | H100: kreeft
A101: 5 | B101: halve tomaat belegd met krabsla | D101: 5 | E101: langoustines 1 pp
A102: 6 | B102: pandalusgarnalen | D102: 6 | E102: gebakken scampi's 2 pp
A103: 7 | B103: haring met dille | D103: 7 | E103: roastbeef
A104: 8 | B104: américain préparé | D104: 8 | E104: kabeljauw
A105: 9 | B105: varkensgebraad | D105: 9 | E105: gerookte heilbot
A106: 10 | B106: salami | D106: 10 | E106: gerookte forelfilet
A107: 11 | B107: gekookte achterham
A108: 12 | B108: hennepot
A109: 13 | B109: vleespastei
A110: 14 | B110: hoofdvlees
A111: 15 | B111: stukjes kippebout
A112: 16 | B112: hespeworst
A113: 17 | B113: gepocheerde zalm
A114: 18 | B114: gerookte bacon | F114: De aanpassing gebeurt ondertussen automatisch
A115: 19 | B115: gepocheerde forel
A116: 20 | B116: makreel met peper
B117: basisprijs | E117: sup. Tov basisprijs | H117: sup. Tov basisprijs
B118: 31.00 | E118: 5.00 | H118: 8.50
B119: Basisprijs buffet: | E119: Supplement "koning" | H119: Supplement "keizer"
B124: Huiswijn, bieren en frisdranken als forfait | M124: 2.80
B125: Domaine Joel Delauny Touraine en/of Château Reynier, Bordeaux superieur, bieren en frisdranken | M125: 7.00
B128: supplement per stukje gebak: | I128: 1.00 | K128: 0
K129: 0
B130: Nog geen dessert geselecteerd | K130: 0
B131: IJstaart ambachtelijk, speciale vorm, smaak naar keuze | I131: 5.30
B132: Stel hieronder uw mini dessertbordje samen met minstens 4 dessertjes | I132: 3.90 | K132: Keuze: Roomijs en/of Bruine chocolademousse en/of Pasteis de nata en/of | L132: Chocoladebavarois en/of Miserable en/of glaasje fruitsla met perensorbet en/of | M132: Witte chocolademousse en/of Roomsoes met warme chocoladesaus en/of Tiramisu en/of | N132: Javanais en/of Gebak peer-caramel en/of mini fruittaartje.
B133: Coupe met vers fruit en verse slagroom. | I133: 3.90 | K133: Vanilleijs, vers fruit en verse slagroom
B134: Aardbeiensoepje met sinaasappel in seizoen | I134: 3.90 | K134: Sinaasappelsap met grand marnier en daarin vers gesneden aardbeien (alleen in seizoen)
B135: Coupe met aardbeien en verse slagroom. | I135: 3.90 | K135: Vanilleijs, verse aardbeien en verse slagroom
B136: Dame blanche | I136: 3.90 | K136: Vanilleijs, verse slagroom,warme chocoladesaus.
B137: - frambozentaart | I137: 5.75 | K137: De lekkerste van alle gebakjes.
B138: - progres | I138: 5.75 | K138: Een klassieker.
B139: - fruitgebakje | I139: 3.90 | K139: Klein maar fijn gebakje
B140: - biscuit crème fraiche met coulis | I140: 3.90 | K140: Vrij groot stuk met slagroom. Foto op de taart: suppl. € 0,7 per stuk taart en € 10 per foto
B141: - warme appeltaart met een bolletje ijs | I141: 3.90 | K141: Hier heb je zowel gebak als vanilleijs.
B142: - zwarte woudtaart | I142: 5.75 | K142: Biscuit met cacaopoeder in een tasje.
B143: Sabayon met rood fruit | I143: 3.90 | K143: Sabayon, fruit en ijs
B144: 0.00 | I144: 0.00
B145: Basis dessertbuffet met: | I145: 10.00 | K145: vers fruit, verschillende soorten sorbet, chocolademousse, roomijs | L145: variatie van miserable, javanais, pasteis de nata, roomsoes, speculoostaart, | M145: De samenstelling van het buffet kan verschillen, naargelang de grootte van de groep | P145: Belangrijk: De prijs van dit dessertbuffet geldt alleen indien voorafgegaan door een maaltijd!!
B146: Uitgebreid dessertbuffet met: | I146: 12.00 | K146: vers fruit, verschillende soorten sorbet, chocolademousse, roomijs | L146: variatie van miserable, javanais, pasteis de nata, roomsoes, speculoostaart, | M146: De samenstelling van het buffet kan verschillen, naargelang de grootte van de groep | N146: assortiment van mini-bavarois (framboos-passie-zwarte woud-pistache-chocolade praliné) | P146: Belangrijk: De prijs van dit dessertbuffet geldt alleen indien voorafgegaan door een maaltijd!!
B147: Uitgebreid en luxueus dessertbuffet met: | I147: 14.00 | K147: vers fruit, verschillende soorten sorbet, chocolademousse, roomijs | L147: variatie van miserable, javanais, pasteis de nata, roomsoes, speculoostaart, | M147: De samenstelling van het buffet kan verschillen, naargelang de grootte van de groep | N147: assortiment van mini-bavarois (framboos-passie-zwarte woud-pistache-chocolade praliné) | O147: dessertglaasjes (framboos-amandel - trio chocolade - mango-caramel - chocolade praliné) | P147: Belangrijk: De prijs van dit dessertbuffet geldt alleen indien voorafgegaan door een maaltijd!!
B154: Nog geen keuze gemaakt
B155: Koffie 3 X bediend | H155: € | I155: 2.50
B156: Koffie 3 X bediend met koekjes | H156: € | I156: 3.35
B157: Koffie 3 X bediend met pralines | H157: € | I157: 3.90
A159: Alle drank na de maaltijd komt op één rekening en wordt door de organisator van het feest betaald | P159: één rekening
A160: Elke gast die na de maaltijd een drankje bestelt rekent direct af aan de bar | P160: direct afrekenen
A161: Forfait voor drank naar believen (alle bieren en frisdranken van de drankkaart in de zaal) na een maaltijd. pp: | O161: 16.00 | P161: 16.00 | Q161: alletwee de prijzen nodig!
A162: Indien er geen volwaardige maaltijd wordt genomen, dienen er minstens 4 belegde broodjes genomen te worden en verhoogt het drankforfait tot € 28,00 | P162: 28.00
A163: 's middags tot 21 u - 's avonds onbeperkt. Let op! Artikel 8 van de verkoopsvoorwaarden (zie laatste bladzijde) kan hier van toepassing zijn !!!!
A165: Neem contact op met de zaakvoerder op tel nr 0475/618058 | P165: x
A166: om hier zeker geen misverstanden over te hebben!
A169: Verbruik van DJ ten laste van de klant
A171: Voor onze vegetarische klanten:
A173: - Voor onze vegetarische klanten bereiden wij graag een aparte schotel.
A174: Wij vragen wel met aandrang om op voorhand te melden als er vegetariërs zijn.
A175: Zij eten mee aan de prijs van de rest van de groep.
A180: Mensen met een speciaal dieet:
A182: Wij houden rekening met speciale wensen van mensen die een dieet volgen,
A183: maar alleen indien op voorhand gemeld.
A185: Halal kan ook, onder toezicht van een moslim bereid.
A187: ja
A188: nee
A222: Exclusiviteit voor beide zalen: | F222: 750
A380: Betaling op de dag zelf (cash of bancontact), u bekomt 2% korting op het totaal
A381: Storting op BE 48 4631 1391 2127 min. 7 dagen voor het feest, 2% korting
A382: Betaling na het feest. Gelieve 40 % voorschot te storten op BE48 4631 1391 2127. Geen korting.

Sheet Algemene verkoopsvoorwaarden
B1: Algemene verkoopsvoorwaarden:
B2: 1) Onze facturen zijn contant te betalen bij levering van de goederen. Bijgevolg zal in geval van laattijdige betaling
B3: van rechtswege en zonder voorafgaande ingebrekestelling een intrest aangerekend worden van 12% per jaar op de
B4: bedragen, verschuldigd acht dagen na de vervaldag van de facturen. Tevens zal bij gebrek aan betaling na
B5: aanmaning bij gewone brief, het verschuldigde bedrag van rechtswege verhoogd worden met een forfaitaire
B6: vergoeding van 12 % met een minimum van € 50 voor bijkomende administratieve kosten, debiteurenbewaking
B7: en commerciële stoornissen. Wij behouden ons het recht voor op elk moment de leveringen te staken. Elke
B8: klacht over de kwaliteit van de geleverde goederen moet uiterlijk 24 uur na de levering worden overgemaakt.
B9: Klachten in verband met facturatie kunnen slechts in aanmerking worden genomen zo zij binnen de acht
B10: dagen na ontvangst van de goederen bij aangetekende brief worden meegedeeld. In geval van betwisting zijn
B11: uitsluitend de rechtbanken van Kortrijk bevoegd. De leveringen geschieden op risico van de bestemmeling. Er
B12: wordt uitdrukkelijk overeengekomen dat de klant door het plaatsen van een bestelling onze algemene
B13: verkoopsvoorwaarden erkent. Elke wijziging hieraan moet voorafgaandelijk in een schriftelijk akkoord worden
B14: vastgelegd.
B16: 2) Annulatie dient schriftelijk en gedateerd te geschieden.
B17: In geval van annulatie minder dan 60 dagen voor de activiteit blijft het voorschot eigendom van het Katelijnenhof.
B18: Voor annulatie minder dan 10 dagen voor de activiteit is de klant in alle gevallen verplicht 35 % van de reservatie-
B19: waarde van de gehele manifestatie te vergoeden.
B20: Bij annulatie minder dan 5 dagen voor de activiteit is de klant in alle gevallen verplicht de reservatie waarde van de
B21: gehele manifestatie te vergoeden.
B23: 3) Iedere levering van dranken, voedingswaren of diensten in de zalen is uitsluitend voorbehouden aan het
B24: Katelijnenhof, tenzij er een andere schriftelijke overeenkomst is.
B26: 4) De klant is eraan gehouden voor iedere dansavond met groot orkest een aanvraag tot toelating in te dienen bij
B27: SABAM, Rijselsestraat 51, 8500 Kortrijk, Tel : 056/210738 en alle kosten voortvloeiend uit deze aanvraag te
B28: dragen. Voor een gewone disc-jockey betalen wij jaarlijks een vaste bijdrage. Het verbruik (drank en voeding)
B29: van de DJ is ten laste van de klant. Gelet op de nieuwe geluidsnormen, van kracht op 01/01/2013, moet de
B30: klant de DJ of elke andere persoon of toestel dat geluid produceert verplichten zich aan deze normen te houden.
B31: De toelating voor onze zaal is – maximaal geluidsniveau > 85 dB(A) LAeq,15min en ≤ 95 dB(A) LAeq,15min.
B32: Dit is ruim voldoende. Alle boetes ten gevolge een overschrijding van deze voorwaarde zijn ten laste van de
B33: klant. Er wordt een professionele houding van elke DJ of geluidstechnicus verwacht.
B35: 5) Alle door de klant meegebrachte materiaal dient door de klant te worden verzekerd en direct na het beëindigen
B36: van de manifestatie te worden verwijderd uit de zaal. Het Katelijnenhof behoudt het recht de leverancier te
B37: aanvaarden en voorschriften te geven om de lokalen ongeschonden te behouden. Het is strikt verboden om
B38: versieringen aan de muren of plafonds te bevestigen met duimspijkers of kleefband ! Bij beschadigingen van
B39: een deel van de muur wordt het geheel als beschadigd beschouwd.
B41: 6) Het gebruik van de zaal is strikt beperkt tot de in deze overeenkomst vastgestelde functie.
B42: Iedere wijziging in de voorheen verklaarde bestemming brengt automatisch het recht tot prijsherziening met zich mee.
B44: 7) Het gebruik van de zaal is gratis van zodra het verbruik hoger ligt dan € | J44: =matrixen!E6 -> 950
B45: ="Indien het verbruik lager ligt dan wordt het factuurbedrag opgetrokken tot € "&J44 -> Indien het verbruik lager ligt dan wordt het factuurbedrag opgetrokken tot € 950
B46: Indien uw feest cash (max € 3000) betaald wordt op de dag zelf dan krijgt u een korting van 2 %
B47: op de gehele factuur. Voor traiteurdienst gelden andere kortingsregels.
B49: 8) Op vrijdag-, zaterdag- en (in geval van een avondfeest) op zondagnacht sluit de zaal,
B50: overeenkomstig het politiereglement, om 03 uur.
B51: Indien de klant dit wenst kan een afwijking bekomen worden op dit reglement mits het betalen van € | M51: =J44/10 -> 95
B52: (btw incl.) per uur. De klant heeft tijd tot 02u30 om te beslissen of hij van deze afwijking wenst gebruik te
B53: maken of niet. Indien de klant akkoord gaat deze toeslag te betalen zal het Katelijnenhof onmiddellijk een
B54: aanvraag doen bij de lokale politie. In het andere geval worden vanaf 02u45 geen dranken meer bediend en
B55: sluiten om 03u00 de deuren. Voor de andere dagen gelden andere tarieven.
B56: Op een zaterdag - en zondagmiddagfeest sluit de zaal om 18u30. Indien u wenst langer te blijven wordt per
B57: begonnen uur eveneens een toeslag van € | G57: =M51 -> 95
B58: (btw incl.) aangerekend.
B59: 9) De klant is verantwoordelijk voor de goede orde in en rond de feestzaal. Schade veroorzaakt door een der
B60: aanwezigen kan verhaald worden op deze persoon maar als deze om gelijk welke reden de schade niet kan
B61: vergoeden (vb: te weinig financiële middelen of de veroorzaker is onbekend) kan deze schade eveneens
B62: ondeelbaar worden verhaald op de klant , zijnde de persoon die het feest heeft besteld. VB: per gebroken tulpje
B63: aan de lusters van de grote zaal wordt 25 euro aangerekend.

Sheet Reservatievoorstel
C1: Reservatievoorstel | K1: Uitsplitsing per BTW tarief. | P1: Totaalprijs per vol: | Q1: =D9 -> 33.80
A2: Naam Klant: | C2: ='koud buffet'!F92 -> 0 | E2: Katelijnenhof | O2: =IF(P2>0,"Prijs drankforfait na de maaltijd, volledig aan 21% BTW:","") -> Prijs drankforfait na de maaltijd, volledig aan 21% BTW: | P2: =IF(Q2>0,"Prijs drankforfait na de maaltijd, volledig aan 21% BTW:","") ->  | Q2: ='koud buffet'!D76 -> 0.00
A3: Adres: | C3: ='koud buffet'!F93 -> 0 | E3: Heirweg 172 | H3: aankomst om: | I3: ='koud buffet'!F90 -> 0 | M3: Menu | O3: Dep. B | P3: =IF(Q2>0,"Drank- forfait:","") ->  | Q3: Totaal aan 21% | R3: Dep. A
A4: Stad: | C4: ='koud buffet'!F94 -> 0 | E4: 8800 Roeselare | H4: aan tafel om: | I4: ='koud buffet'!F91 -> 0 | K4: aantal | L4: totaal: | M4: deel 12% | N4: deel21%
A5: Tel nr: | C5: ='koud buffet'!F95 -> 0 | E5: info@katelijnenhof.be | J5: Vol | K5: =C9 -> 0 | L5: =Q1-Q2 -> 33.80 | M5: =ROUND(L5*0.65,2) -> 21.97 | N5: =L5-M5 -> 11.83 | O5: =K5*M5 -> 0.00 | P5: =Q2 -> 0.00 | Q5: =N5+P5 -> 11.83 | R5: =K5*Q5 -> 0.00
A6: ='koud buffet'!J103 -> reden feest: | B6: ='koud buffet'!K103 -> 0 | E6: Gsm 0475/618058 | J6: JR 1/2 | K6: =C10 -> 0 | L6: =D10-P6 -> 16.90 | M6: =ROUND(L6*0.65,2) -> 10.99 | N6: =L6-M6 -> 5.91 | O6: =K6*M6 -> 0.00 | P6: =ROUND(Q2/2,2) -> 0.00 | Q6: =N6+P6 -> 5.91 | R6: =K6*Q6 -> 0.00
A7: Datum activiteit: | C7: ='koud buffet'!F83 -> 00:00:00 | E7: email klant: | F7: ='koud buffet'!F96 -> 0 | J7: JR 1/3 | K7: =C11 -> 0 | L7: =D11-P7 -> 11.27 | M7: =ROUND(L7*0.65,2) -> 7.33 | N7: =L7-M7 -> 3.94 | O7: =K7*M7 -> 0.00 | P7: =ROUND(Q2/3,2) -> 0.00 | Q7: =N7+P7 -> 3.94 | R7: =K7*Q7 -> 0.00
C8: Totaal aantal personen: | D8: =C9+C12+C11+C10 -> 0 | H8: raming totaal 1: | I8: =C9*D9+C10*D10+C11*D11+C12*D12 -> € 0.00 | J8: JR gratis | K8: =C12 -> 0 | L8: =E12 -> 0.00 | M8: =L8*0.65 -> 0 | N8: =L8*0.35 -> 0.00 | O8: =K8*M8 -> 0.00 | Q8: =N8+P8 -> 0 | R8: =K8*Q8 -> 0.00
B9: volwassenen: | C9: ='koud buffet'!F85 -> 0 | D9: ='koud buffet'!D7 -> 33.80 | H9: ander rekenblad: | I9: ='koud buffet'!F98 -> € 0.00 | L9: Voorschot reeds betaald: | O9: =ROUND(M9/98*100,2) -> 0 | P9: =IF(Q9>0,"Huur zaal/exclusiviteit: ","") ->  | Q9: =I10+I11 -> 0.00
B10: JR 1/2 (6 t.e.m. 11) : | C10: ='koud buffet'!F86 -> 0 | D10: ='koud buffet'!J7 -> 16.90 | H10: huur zaal: | I10: =IF(D8=0,0,IF((I8+I9)<'Algemene verkoopsvoorwaarden'!J44,'Algemene verkoopsvoorwaarden'!J44-Reservatievoorstel!I8-Reservatievoorstel!I9,0)) -> € 0.00 | L10: Gestort / betaald op:
B11: JR 1/3 (3 t.e.m. 5) : | C11: ='koud buffet'!F87 -> 0 | D11: ='koud buffet'!H7 -> 11.27 | H11: =IF(I11>0,"U koos voor exclusiviteit:","") ->  | I11: ='koud buffet'!L74 -> € 0.00 | L11: =IF(O9>0,"Voorschot uitgesplitst:","") ->  | M11: =IF(O9>0," € "&ROUND(O9*0.65,2)& " x 12% => Dep. B en € " & ROUND(O9*0.35,2) & " x 21% => Dep. A.","") -> 
B12: JR gratis (0 t.e.m. 2) : | C12: ='koud buffet'!F88 -> 0 | D12: ='koud buffet'!F7 -> 0,00 | H12: raming algemeen totaal: | I12: =I10+I9+I8+I11 -> € 0.00 | M12: Voorschot wordt gesplitst over: | N12: =IF(O9>0,ROUNDUP((O9+1)/L5,0),0) -> 0 | O12: volwassenen
H13: raming te betalen indien contante betaling (max € 3000 cash): | I13: ='koud buffet'!G104 -> € 0.00 | J13: Input GKS: | M13: =IF(O9*0.65 >N12*M5,"ONMOGELIJK U bekomt negatieve waarden.","") -> 
A14: Voorkeur tafelschikking: | D14: ='koud buffet'!K102 -> geen voorkeur | J14: =N12 -> 0 | K14: vol | L14: x | M14: =IFERROR(ROUND(M5-O9*0.65/N12,2),"") ->  | N14: 12% | O14: =IFERROR(J14*M14,"") ->  | P14: Dep. B | Q14: Verwerking voorschot
A15: ='koud buffet'!H84 ->  | I15: ='koud buffet'!B20 -> De gast die een extra aperitief bestelt betaalt deze zelf | J15: =IFERROR( " Er wordt € " & ROUND(O9*0.65/N12,2) & " minder geboekt bij " & N12 & " personen omdat dit reeds als voorschot werd geboekt.","") -> 
A16: ='koud buffet'!H85 ->  | I16: =IF(O9>0," Uw voorschot van € " & O9 & " wordt nog in mindering gebracht","") ->  | J16: =N12 -> 0 | K16: vol | L16: x | M16: =IFERROR(ROUND(Q5-O9*0.35/N12,2),"") ->  | N16: 21% | O16: =IFERROR(J16*M16,"") ->  | P16: Dep. A | Q16: Verwerking voorschot
A17: ='koud buffet'!H86 ->  | J17: =IFERROR( " Er wordt € " & ROUND(O9*0.35/N12,2) & " minder geboekt bij " & N12 & " personen omdat dit reeds als voorschot werd geboekt.","") -> 
A18: ='koud buffet'!H87 ->  | J18: =K5-J14 -> 0 | K18: =K14 -> vol | L18: x | M18: =M5 -> 21.97 | N18: 12% | O18: =J18*M18 -> 0.00 | P18: Dep. B
A19: ='koud buffet'!H88 ->  | J19: =K5-J16 -> 0 | K19: =K16 -> vol | L19: x | M19: =Q5 -> 11.83 | N19: 21% | O19: 0.00 | P19: Dep. A
A20: ='koud buffet'!H89 ->  | J20: =K6 -> 0 | K20: =J6 -> JR 1/2 | L20: x | M20: =M6 -> 10.99 | N20: 12% | O20: 0.00 | P20: Dep. B
A21: ='koud buffet'!H90 ->  | J21: =K6 -> 0 | K21: =J6 -> JR 1/2 | L21: x | M21: =Q6 -> 5.91 | N21: 21% | O21: 0.00 | P21: Dep. A
A22: ='koud buffet'!H91 -> Koude aardappelen | G22: ='koud buffet'!H92 -> Groenten en sausen | J22: =K7 -> 0 | K22: =J7 -> JR 1/3 | L22: x | M22: =M7 -> 7.33 | N22: 12% | O22: 0.00 | P22: Dep. B
A23: Koud buffet met volgende specialiteiten: | E23: =IF('koud buffet'!B50=$AG$23,"",'koud buffet'!B50) ->  | I23: =IF('koud buffet'!F50=$AG$25,"",'koud buffet'!F50) ->  | J23: =K7 -> 0 | K23: =J7 -> JR 1/3 | L23: x | M23: =Q7 -> 3.94 | N23: 21% | O23: 0.00 | P23: Dep. A | AG23: =matrixen!B97 -> Kies uit deze vlees- of visspecialiteiten
A24: =IF('koud buffet'!B39=$AG$23,"",'koud buffet'!B39) ->  | E24: =IF('koud buffet'!F39=$AG$24,"",'koud buffet'!F39) ->  | I24: =IF('koud buffet'!F51=$AG$25,"",'koud buffet'!F51) ->  | J24: =IF(L24>0,"1",0) -> 0 | K24: =IF(L24>0,"x","") ->  | L24: =Q9 -> 0.00 | M24: =IF(L24>0,"21%","") ->  | N24: =IF(L24>0,"Dep. A","") ->  | O24: =P9 ->  | AG24: =matrixen!E97 -> supplement 1
A25: =IF('koud buffet'!B40=$AG$23,"",'koud buffet'!B40) ->  | E25: =IF('koud buffet'!F40=$AG$24,"",'koud buffet'!F40) ->  | I25: =IF('koud buffet'!F52=$AG$25,"",'koud buffet'!F52) ->  | K25: Totale boekwaarde: | L25: =SUM(O14:O23)+L24+O9+I9 -> 0.00 | M25: =IF(SUM(O14:O23)+L24+O9+I9 <>I12," Er is iets fout met de splitsingstabel","") ->  | AG25: =matrixen!H97 -> supplement 2
A26: =IF('koud buffet'!B41=$AG$23,"",'koud buffet'!B41) ->  | E26: =IF('koud buffet'!F41=$AG$24,"",'koud buffet'!F41) ->  | J26: ="De eventuele korting contant van 2 %, in het huidig voorstel is dit € " &ROUND( I12-I13,2) & " is nog niet in bovenstaande splitsing verwerkt." -> De eventuele korting contant van 2 %, in het huidig voorstel is dit € 0 is nog niet in bovenstaande splitsing verwerkt.
A27: =IF('koud buffet'!B42=$AG$23,"",'koud buffet'!B42) ->  | E27: =IF('koud buffet'!F42=$AG$24,"",'koud buffet'!F42) -> 
A28: =IF('koud buffet'!B43=$AG$23,"",'koud buffet'!B43) ->  | E28: =IF('koud buffet'!F43=$AG$24,"",'koud buffet'!F43) ->  | J28: =IF(M28<>"","Detail van het aperitief:","") ->  | M28: =A15 ->  | R28: ='koud buffet'!F13 -> 0
A29: =IF('koud buffet'!B44=$AG$23,"",'koud buffet'!B44) ->  | E29: =IF('koud buffet'!F44=$AG$24,"",'koud buffet'!F44) ->  | R29: ='koud buffet'!F14 -> 0
A30: =IF('koud buffet'!B45=$AG$23,"",'koud buffet'!B45) ->  | E30: =IF('koud buffet'!F45=$AG$24,"",'koud buffet'!F45) ->  | J30: ='koud buffet'!G13 -> 0 | R30: ='koud buffet'!F15 -> 0
A31: =IF('koud buffet'!B46=$AG$23,"",'koud buffet'!B46) ->  | E31: =IF('koud buffet'!F46=$AG$24,"",'koud buffet'!F46) ->  | J31: ='koud buffet'!G14 -> 0 | R31: ='koud buffet'!F16 -> 0
A32: =IF('koud buffet'!B47=$AG$23,"",'koud buffet'!B47) ->  | E32: =IF('koud buffet'!F47=$AG$24,"",'koud buffet'!F47) ->  | J32: ='koud buffet'!G15 -> 0 | R32: ='koud buffet'!F17 -> 0
A33: =IF('koud buffet'!B48=$AG$23,"",'koud buffet'!B48) ->  | E33: ='koud buffet'!H96 -> Huiswijn, bieren en frisdranken als forfait | J33: ='koud buffet'!G16 -> 0 | R33: ='koud buffet'!F18 -> 0
A34: =IF('koud buffet'!B49=$AG$23,"",'koud buffet'!B49) ->  | J34: ='koud buffet'!G17 -> 0
A35: ='koud buffet'!H97 ->  | J35: ='koud buffet'!G18 -> 0
A36: ='koud buffet'!H98 ->  | J36: ='koud buffet'!G19 -> 0
A37: ='koud buffet'!H99 & " " & 'koud buffet'!B76 -> Keuze drank na de maaltijd: Alle drank na de maaltijd komt op één rekening en wordt door de organisator van het feest betaald | J37: ='koud buffet'!G20 -> 0
J38: ='koud buffet'!G21 -> 0
A39: ="Opmerking : " &'koud buffet'!K104 -> Opmerking : | J39: ='koud buffet'!G22 -> 0
J40: ='koud buffet'!G23 -> 0
J41: ='koud buffet'!G24 -> 
B42: Vegetariërs: | C42: ='koud buffet'!G76 -> nee | F42: Feest met discobar: | G42: ='koud buffet'!G78 -> nee | I42: Halal bereidingen: | J42: ='koud buffet'!G25 -> 0
B43: Speciale dieten: | C43: ='koud buffet'!I76 -> nee | F43: ='koud buffet'!H78 -> Allergenen: | G43: ='koud buffet'!I78 -> nee | I43: ='koud buffet'!K76 -> nee | J43: ='koud buffet'!G26 -> 0
A44: ='koud buffet'!B78 & " " & 'koud buffet'!B79 -> Wijze van betaling: Betaling op de dag zelf (cash of bancontact), u bekomt 2% korting op het totaal | I44: Factuur: | J44: =IF(A35<>"","Detail van het dessert:","") -> 
I45: ='koud buffet'!K105 -> nee | J45: =IF('koud buffet'!$B$59=matrixen!$B$132,'koud buffet'!B62 & ", " & 'koud buffet'!B63,'koud buffet'!F59) -> 0
A46: Het juiste aantal EN de gewenste tafelschikking moet ons meegedeeld worden ten laatste op: | I46: =C7-9 -> -9 | J46: =IF('koud buffet'!$B$59=matrixen!$B$132,'koud buffet'!B64 & ", " & 'koud buffet'!B65,'koud buffet'!F60) -> 0
A47: Wijzigingen na deze datum van aantal en/of tafelschikking hebben prijsherzieningen tot gevolg! | J47: =IF('koud buffet'!$B$59=matrixen!$B$132,'koud buffet'!B66 & ", " & 'koud buffet'!B67,'koud buffet'!F61) -> 0
A48: Dit aantal geldt als minimum voor facturatie. Verdere verkoopsvoorwaarden op een ander werkblad. | J48: =IF('koud buffet'!$B$59=matrixen!$B$132,'koud buffet'!B68,'koud buffet'!F62) -> 0
A49: Vergeet ze niet te lezen. | H49: Gaat u akkoord met de algemene verkoopsvoorwaarden? | I49: ='koud buffet'!K101 -> ja | J49: ='koud buffet'!F71 -> 0
A50: Handtekening der beide partijen voor akkoord: | E50: De klant | H50: Het Katelijnenhof | J50: ='koud buffet'!F72 -> 0
